Workbook

Sheet 1. CombineSubgroups
B2: CTPP Margin of Error Toolkit
B4: Estimating MOE for Combined Subgroups
B5: We emphasize that the Toolkit’s GVF-based approaches should be used only when the aggregated total (X) is between 0 and 100,000, which is within the range of the modeled X’s.
B6: Generalized Variance Function parameters
B7: a | C7: -0.00023
B8: b | C8: 24.8988
B10: User Inputs
B12: To estimate the proportion (p) for the combined estimate, enter the denominator Y value and its MOE: | T12: Outputs
B13: Y | C13: MOE
B14: 30000 | C14: 900
T15: Aggregated | U15: MOE(x)
B16: Enter estimates to be aggregated | T16: estimate
B17: X | C17: MOE | D17: MOE^2 | E17: GVF_MOE^2 | F17: f_gvf_2 | J17: adj_gvf_uw | K17: adj_gvf_w | T17: X | U17: Naïve | V17: GVF | W17: GVF- uw adj | X17: GVF- w adj
B18: 20 | C18: 23.45783843 | D18: =IF(B18>0,C18^2,0) -> 550.2701837 | E18: =IF(B18>0,($C$7+$C$8/B18)*B18*B18*1.645*1.645,0) -> 1347.286551 | F18: =IF(D18>0,E18/D18,0) -> 2.448409147 | G18: =IF(B18>=20,F18,"") -> 2.448409147 | H18: =IF(B18>=20,B18*G18,"") -> 48.96818294 | I18: =IF(B18>=20,B18,0) -> 20 | J18: =AVERAGE(G18:G10017) -> 1.672481258 | K18: =SUM(H18:H10017)/SUM(I18:I10017) -> 1.358792908 | T18: =SUM(B18:B10017) -> 26765 | U18: =SQRT(SUM(D18:D10017)) -> 1184.448207 | V18: =SQRT(($C$7+$C$8/T18)*T18*T18*1.645*1.645) -> 1165.111103 | W18: =V18/SQRT(J18) -> 900.9210017 | X18: =V18/SQRT(K18) -> 999.5181969
B19: 0 | C19: 118.622595 | D19: =IF(B19>0,C19^2,0) -> 0 | E19: =IF(B19>0,($C$7+$C$8/B19)*B19*B19*1.645*1.645,0) -> 0 | F19: =IF(D19>0,E19/D19,0) -> 0 | G19: =IF(B19>=20,F19,"") ->  | H19: =IF(B19>=20,B19*G19,"") ->  | I19: =IF(B19>=20,B19,0) -> 0
B20: 120 | C20: 83.51514496 | D20: 6974.779437 | E20: 8076.250678 | F20: 1.157922017 | G20: 1.157922017 | H20: 138.9506421 | I20: 120 | T20: p | U20: MOE(p)
B21: 15 | C21: 30.33007087 | D21: 919.9131987 | E21: 1010.511592 | F21: 1.098485807 | I21: 0 | L21: MOE(y) | U21: Naïve | V21: GVF | W21: GVF- uw adj | X21: GVF- w adj
B22: 15 | C22: 29.38524421 | D22: 863.4925775 | E22: 1010.511592 | F22: 1.17026089 | I22: 0 | L22: =1.645*SQRT(($T$18^2)*(C7+C8/$B$14)) -> 1078.435805 | T22: =T18/B14 -> 0.8921666667 | U22: =SQRT(($T$22^2)*((U18^2)/($T$18^2)-(($C$14^2)/($B$14^2)))) -> 0.02902468015 | V22: =SQRT(($T$22^2)*((V18^2)/($T$18^2)-(($L$22^2)/($B$14^2)))) -> 0.02190286353 | W22: =SQRT(($T$22^2)*((W18^2)/($T$18^2)-(($C$14^2)/($B$14^2)))) -> 0.01361902055 | X22: =SQRT(($T$22^2)*((X18^2)/($T$18^2)-(($C$14^2)/($B$14^2)))) -> 0.01984125678
B23: 25 | C23: 32.95136615 | D23: 1085.792531 | E23: 1684.030391 | F23: 1.550968847 | G23: 1.550968847 | H23: 38.77422118 | I23: 25
B24: 0 | C24: 118.622595 | D24: 0 | E24: 0 | F24: 0 | I24: 0 | T24: Note: The weighted adjusted GVF estimator (GVF- w adj) is recommended for use when calculating the MOE of an aggregate estimate, especially when the naïve estimate is much larger than the weighted adjusted GVF estimate, which is a signal that the naïve estimate may be significantly overestimating.
B25: 60 | C25: 42.22077651 | D25: 1782.593969 | E25: 4040.365928 | F25: 2.266565465 | G25: 2.266565465 | H25: 135.9939279 | I25: 60
B26: 0 | C26: 118.622595 | D26: 0 | E26: 0 | F26: 0 | I26: 0
B27: 0 | C27: 118.622595 | D27: 0 | E27: 0 | F27: 0 | I27: 0
B28: 0 | C28: 118.622595 | D28: 0 | E28: 0 | F28: 0 | I28: 0
B29: 460 | C29: 130.7878455 | D29: 17105.46053 | E29: 30861.6198 | F29: 1.804196955 | G29: 1.804196955 | H29: 829.9305992 | I29: 460
B30: 40 | C30: 50.09828528 | D30: 2509.838188 | E30: 2694.075194 | F30: 1.07340593 | G30: 1.07340593 | H30: 42.9362372 | I30: 40
B31: 15 | C31: 22.58507721 | D31: 510.0857125 | E31: 1010.511592 | F31: 1.981062334 | I31: 0
B32: 0 | C32: 118.622595 | D32: 0 | E32: 0 | F32: =IF(D32>0,E32/D32,0) -> 0 | G32: =IF(B32>=20,F32,"") ->  | I32: =IF(B32>=20,B32,0) -> 0
B33: 0 | C33: 118.622595 | D33: 0 | E33: 0 | F33: 0 | I33: 0
B34: 55 | C34: 53.52573184 | D34: 2865.003969 | E34: 3703.839923 | F34: 1.292787013 | G34: 1.292787013 | H34: 71.10328571 | I34: 55
B35: 35 | C35: 41.49347426 | D35: 1721.708406 | E35: 2357.424712 | F35: 1.369235756 | G35: 1.369235756 | H35: 47.92325147 | I35: 35
B36: 0 | C36: 118.622595 | D36: 0 | E36: 0 | F36: 0 | I36: 0
B37: 85 | C37: 63.28441356 | D37: 4004.917 | E37: 5722.529161 | F37: 1.428875845 | G37: 1.428875845 | H37: 121.4544468 | I37: 85
B38: 185 | C38: 131.1365276 | D38: 17196.78887 | E38: 12443.40227 | F38: 0.7235887097 | G38: 0.7235887097 | H38: 133.8639113 | I38: 185
B39: 115 | C39: 75.98671492 | D39: 5773.980844 | E39: 7740.098105 | F39: 1.340513298 | G39: 1.340513298 | H39: 154.1590293 | I39: 115
B40: 0 | C40: 118.622595 | D40: 0 | E40: 0 | F40: 0 | I40: 0
B41: 0 | C41: 118.622595 | D41: 0 | E41: 0 | F41: 0 | I41: 0
B42: 25 | C42: 35.81418504 | D42: 1282.65585 | E42: 1684.030391 | F42: 1.312924578 | G42: 1.312924578 | H42: 32.82311445 | I42: 25
B43: 10 | C43: 20.21409842 | D43: 408.609775 | E43: 673.7055141 | F43: 1.648774835 | I43: 0
B44: 0 | C44: 118.622595 | D44: 0 | E44: 0 | F44: 0 | I44: 0
B45: 0 | C45: 118.622595 | D45: 0 | E45: 0 | F45: 0 | I45: 0
B46: 15 | C46: 29.41515755 | D46: 865.2514937 | E46: 1010.511592 | F46: 1.167881939 | I46: 0
B47: 0 | C47: 118.622595 | D47: 0 | E47: 0 | F47: 0 | I47: 0
B48: 0 | C48: 118.622595 | D48: 0 | E48: 0 | F48: 0 | I48: 0
B49: 0 | C49: 118.622595 | D49: 0 | E49: 0 | F49: 0 | I49: 0
B50: 0 | C50: 118.622595 | D50: 0 | E50: 0 | F50: 0 | I50: 0
B51: 885 | C51: 231.9318746 | D51: 53792.39447 | E51: 59140.97803 | F51: 1.099430108 | G51: 1.099430108 | H51: 972.9956452 | I51: 885
B52: 0 | C52: 118.622595 | D52: 0 | E52: 0 | F52: 0 | I52: 0
B53: 45 | C53: 37.60183589 | D53: 1413.898062 | E53: 3030.694556 | F53: 2.143502871 | G53: 2.143502871 | H53: 96.45762919 | I53: 45
B54: 10 | C54: 17.12301985 | D54: 293.1978087 | E54: 673.7055141 | F54: 2.297784956 | I54: 0
B55: 10 | C55: 19.18383173 | D55: 368.0194 | E55: 673.7055141 | F55: 1.830625 | I55: 0
B56: 0 | C56: 118.622595 | D56: 0 | E56: 0 | F56: 0 | I56: 0
B57: 0 | C57: 118.622595 | D57: 0 | E57: 0 | F57: 0 | I57: 0
B58: 75 | C58: 60.38516943 | D58: 3646.368688 | E58: 5049.757225 | F58: 1.384872913 | G58: 1.384872913 | H58: 103.8654685 | I58: 75
B59: 0 | C59: 118.622595 | D59: 0 | E59: 0 | F59: 0 | I59: 0
B60: 0 | C60: 118.622595 | D60: 0 | E60: 0 | F60: 0 | I60: 0
B61: 0 | C61: 118.622595 | D61: 0 | E61: 0 | F61: 0 | I61: 0
B62: 0 | C62: 118.622595 | D62: 0 | E62: 0 | F62: 0 | I62: 0
B63: 250 | C63: 96.42913671 | D63: 9298.578406 | E63: 16805.29471 | F63: 1.807297199 | G63: 1.807297199 | H63: 451.8242997 | I63: 250
B64: 40 | C64: 39.31687654 | D64: 1545.816781 | E64: 2694.075194 | F64: 1.74281663 | G64: 1.74281663 | H64: 69.71266521 | I64: 40
B65: 55 | C65: 64.89415541 | D65: 4211.251406 | E65: 3703.839923 | F65: 0.8795105221 | G65: 0.8795105221 | H65: 48.37307872 | I65: 55
B66: 15 | C66: 21.90075184 | D66: 479.6429313 | E66: 1010.511592 | F66: 2.106799718 | I66: 0
B67: 40 | C67: 28.25380284 | D67: 798.277375 | E67: 2694.075194 | F67: 3.374861017 | G67: 3.374861017 | H67: 134.9944407 | I67: 40
B68: 80 | C68: 63.84316844 | D68: 4075.950156 | E68: 5386.158753 | F68: 1.321448631 | G68: 1.321448631 | H68: 105.7158905 | I68: 80
B69: 140 | C69: 91.75576429 | D69: 8419.120281 | E69: 9420.549777 | F69: 1.118947047 | G69: 1.118947047 | H69: 156.6525866 | I69: 140
B70: 930 | C70: 234.0587023 | D70: 54783.47612 | E70: 62122.09957 | F70: 1.133956878 | G70: 1.133956878 | H70: 1054.579897 | I70: 930
B71: 10 | C71: 13.93888787 | D71: 194.292595 | E71: 673.7055141 | F71: 3.467479109 | I71: 0
B72: 10 | C72: 19.70569937 | D72: 388.3145875 | E72: 673.7055141 | F72: 1.734947735 | I72: 0
B73: 0 | C73: 118.622595 | D73: 0 | E73: 0 | F73: 0 | I73: 0
B74: 60 | C74: 49.35 | D74: 2435.4225 | E74: 4040.365928 | F74: 1.659 | G74: 1.659 | H74: 99.54 | I74: 60
B75: 295 | C75: 113.0900113 | D75: 12789.35066 | E75: 19821.98558 | F75: 1.549882095 | G75: 1.549882095 | H75: 457.2152179 | I75: 295
B76: 30 | C76: 31.3738202 | D76: 984.3165938 | E76: 2020.743111 | F76: 2.052940206 | G76: 2.052940206 | H76: 61.58820618 | I76: 30
B77: 860 | C77: 198.468074 | D77: 39389.57641 | E77: 57483.71023 | F77: 1.459363504 | G77: 1.459363504 | H77: 1255.052613 | I77: 860
B78: 80 | C78: 49.72555021 | D78: 2472.630344 | E78: 5386.158753 | F78: 2.178311354 | G78: 2.178311354 | H78: 174.2649083 | I78: 80
B79: 15 | C79: 20.90509597 | D79: 437.0230375 | E79: 1010.511592 | F79: 2.31226161 | I79: 0
B80: 55 | C80: 46.78138218 | D80: 2188.497719 | E80: 3703.839923 | F80: 1.692412056 | G80: 1.692412056 | H80: 93.08266306 | I80: 55
B81: 35 | C81: 31.908336 | D81: 1018.141906 | E81: 2357.424712 | F81: 2.315418605 | G81: 2.315418605 | H81: 81.03965117 | I81: 35
B82: 10 | C82: 19.44651624 | D82: 378.1669938 | E82: 673.7055141 | F82: 1.781502683 | I82: 0
B83: 60 | C83: 45.2375 | D83: =IF(B83>0,C83^2,0) -> 2046.431406 | E83: =IF(B83>0,($C$7+$C$8/B83)*B83*B83*1.645*1.645,0) -> 4040.365928 | F83: 1.974347107 | G83: 1.974347107 | H83: =IF(B83>=20,B83*G83,"") -> 118.4608264 | I83: 60
B84: 20 | C84: 30.30775786 | D84: 918.5601862 | E84: 1347.286551 | F84: 1.466737369 | G84: 1.466737369 | H84: 29.33474739 | I84: 20
B85: 120 | C85: 106.3858523 | D85: 11317.94956 | E85: 8076.250678 | F85: 0.71357896 | G85: 0.71357896 | H85: 85.62947519 | I85: 120
B86: 10 | C86: 14.14126046 | D86: 199.9752475 | E86: 673.7055141 | F86: 3.36894452 | I86: 0
B87: 85 | C87: 53.68348559 | D87: 2881.916625 | E87: 5722.529161 | F87: 1.98566784 | G87: 1.98566784 | H87: 168.7817664 | I87: 85
B88: 0 | C88: 118.622595 | D88: 0 | E88: 0 | F88: 0 | I88: 0
B89: 35 | C89: 31.69561139 | D89: 1004.611781 | E89: 2357.424712 | F89: 2.346602694 | G89: 2.346602694 | H89: 82.13109428 | I89: 35
B90: 2100 | C90: 322.6989418 | D90: 104134.6071 | E90: 138746.5069 | F90: 1.332376535 | G90: 1.332376535 | H90: 2797.990723 | I90: 2100
B91: 40 | C91: 35.18531565 | D91: 1238.006437 | E91: 2694.075194 | F91: 2.176139891 | G91: 2.176139891 | H91: 87.04559563 | I91: 40
B92: 0 | C92: 118.622595 | D92: 0 | E92: 0 | F92: 0 | I92: 0
B93: 40 | C93: 42.14058503 | D93: 1775.828906 | E93: 2694.075194 | F93: 1.517080381 | G93: 1.517080381 | H93: 60.68321524 | I93: 40
B94: 0 | C94: 118.622595 | D94: 0 | E94: 0 | F94: 0 | I94: 0
B95: 5820 | C95: 602.1969573 | D95: 362641.1753 | E95: 371051.133 | F95: 1.023190852 | G95: 1.023190852 | H95: 5954.970756 | I95: 5820
B96: 0 | C96: 118.622595 | D96: 0 | E96: 0 | F96: =IF(D96>0,E96/D96,0) -> 0 | G96: =IF(B96>=20,F96,"") ->  | I96: =IF(B96>=20,B96,0) -> 0
B97: 60 | C97: 68.59373855 | D97: 4705.100969 | E97: 4040.365928 | F97: 0.8587203451 | G97: 0.8587203451 | H97: 51.5232207 | I97: 60
B98: 310 | C98: 127.2351939 | D98: 16188.79456 | E98: 20826.98906 | F98: 1.286506477 | G98: 1.286506477 | H98: 398.8170079 | I98: 310
B99: 0 | C99: 118.622595 | D99: 0 | E99: 0 | F99: 0 | I99: 0
B100: 0 | C100: 118.622595 | D100: 0 | E100: 0 | F100: 0 | I100: 0
B101: 25 | C101: 27.04762205 | D101: 731.5738588 | E101: 1684.030391 | F101: 2.301928056 | G101: 2.301928056 | H101: 57.5482014 | I101: 25
B102: 0 | C102: 118.622595 | D102: 0 | E102: 0 | F102: 0 | I102: 0
B103: 0 | C103: 118.622595 | D103: 0 | E103: 0 | F103: 0 | I103: 0
B104: 10 | C104: 17.61763513 | D104: 310.3810675 | E104: 673.7055141 | F104: 2.170575414 | I104: 0
B105: 20 | C105: 25.58226234 | D105: 654.4521462 | E105: 1347.286551 | F105: 2.058647922 | G105: 2.058647922 | H105: 41.17295845 | I105: 20
B106: 270 | C106: 75.04608272 | D106: 5631.914531 | E106: 18146.3574 | F106: 3.222058378 | G106: 3.222058378 | H106: 869.9557622 | I106: 270
B107: 35 | C107: 33.10498641 | D107: 1095.940125 | E107: 2357.424712 | F107: 2.151052469 | G107: 2.151052469 | H107: 75.28683642 | I107: 35
B108: 155 | C108: 91.57125624 | D108: 8385.294969 | E108: 10428.44735 | F108: 1.243658975 | G108: 1.243658975 | H108: 192.7671412 | I108: 155
B109: 40 | C109: 34.99251795 | D109: 1224.476312 | E109: 2694.075194 | F109: 2.200185635 | G109: 2.200185635 | H109: 88.00742542 | I109: 40
B110: 10 | C110: 13.78761242 | D110: 190.0982562 | E110: 673.7055141 | F110: 3.543985765 | I110: 0
B111: 0 | C111: 118.622595 | D111: 0 | E111: 0 | F111: 0 | I111: 0
B112: 0 | C112: 118.622595 | D112: 0 | E112: 0 | F112: 0 | I112: 0
B113: 50 | C113: 44.25478046 | D113: 1958.485594 | E113: 3367.282799 | F113: 1.719329879 | G113: 1.719329879 | H113: 85.96649395 | I113: 50
B114: 785 | C114: 211.175974 | D114: 44595.292 | E114: 52507.23893 | F114: 1.177416641 | G114: 1.177416641 | H114: 924.2720634 | I114: 785
B115: 0 | C115: 118.622595 | D115: 0 | E115: 0 | F115: 0 | I115: 0
B116: 10 | C116: 12.90565143 | D116: 166.5558388 | E116: 673.7055141 | F116: 4.044922827 | I116: 0
B117: 90 | C117: 65.38745675 | D117: 4275.5195 | E117: 6058.86845 | F117: 1.417106962 | G117: 1.417106962 | H117: 127.5396266 | I117: 90
B118: 0 | C118: 118.622595 | D118: 0 | E118: 0 | F118: 0 | I118: 0
B119: 40 | C119: 35.42483724 | D119: 1254.919094 | E119: 2694.075194 | F119: 2.14681186 | G119: 2.14681186 | H119: 85.8724744 | I119: 40
B120: 25 | C120: 31.85528802 | D120: 1014.759375 | E120: 1684.030391 | F120: 1.659536667 | G120: 1.659536667 | H120: 41.48841667 | I120: 25
B121: 20 | C121: 25.23346355 | D121: 636.7276825 | E121: 1347.286551 | F121: 2.115954101 | G121: 2.115954101 | H121: 42.31908202 | I121: 20
B122: 20 | C122: 33.66628241 | D122: 1133.418571 | E122: 1347.286551 | F122: 1.188692849 | G122: 1.188692849 | H122: 23.77385699 | I122: 20
B123: 15 | C123: 23.75302533 | D123: 564.2062125 | E123: 1010.511592 | F123: 1.791032374 | I123: 0
B124: 25 | C124: 27.74398694 | D124: 769.7288112 | E124: 1684.030391 | F124: 2.187822992 | G124: 2.187822992 | H124: 54.6955748 | I124: 25
B125: 0 | C125: 118.622595 | D125: 0 | E125: 0 | F125: 0 | I125: 0
B126: 65 | C126: 41.85870504 | D126: 1752.151188 | E126: 4376.860813 | F126: 2.497992664 | G126: 2.497992664 | H126: 162.3695232 | I126: 65
B127: 110 | C127: 62.26058796 | D127: 3876.380813 | E127: 7403.914412 | F127: 1.910006981 | G127: 1.910006981 | H127: 210.1007679 | I127: 110
B128: 0 | C128: 118.622595 | D128: 0 | E128: 0 | F128: 0 | I128: 0
B129: 0 | C129: 118.622595 | D129: 0 | E129: 0 | F129: 0 | I129: 0
B130: 0 | C130: 118.622595 | D130: 0 | E130: 0 | F130: 0 | I130: 0
B131: 0 | C131: 118.622595 | D131: 0 | E131: 0 | F131: 0 | I131: 0
B132: 0 | C132: 118.622595 | D132: 0 | E132: 0 | F132: 0 | I132: 0
B133: 45 | C133: 35.52019364 | D133: 1261.684156 | E133: 3030.694556 | F133: 2.402102413 | G133: 2.402102413 | H133: 108.0946086 | I133: 45
B134: 0 | C134: 118.622595 | D134: 0 | E134: 0 | F134: 0 | I134: 0
B135: 25 | C135: 43.19338996 | D135: 1865.668936 | E135: 1684.030391 | F135: 0.9026415984 | G135: 0.9026415984 | H135: 22.56603996 | I135: 25
B136: 0 | C136: 118.622595 | D136: 0 | E136: 0 | F136: 0 | I136: 0
B137: 10 | C137: 21.82339112 | D137: 476.2604 | E137: 673.7055141 | F137: 1.414573864 | I137: 0
B138: 40 | C138: 36.27402178 | D138: 1315.804656 | E138: 2694.075194 | F138: 2.047473522 | G138: 2.047473522 | H138: 81.89894088 | I138: 40
B139: 35 | C139: 54.37216487 | D139: 2956.332312 | E139: 2357.424712 | F139: 0.7974153318 | G139: 0.7974153318 | H139: 27.90953661 | I139: 35
B140: 0 | C140: 118.622595 | D140: 0 | E140: 0 | F140: 0 | I140: 0
B141: 0 | C141: 118.622595 | D141: 0 | E141: 0 | F141: 0 | I141: 0
B142: 0 | C142: 118.622595 | D142: 0 | E142: 0 | F142: 0 | I142: 0
B143: 0 | C143: 118.622595 | D143: 0 | E143: 0 | F143: 0 | I143: 0
B144: 130 | C144: 79.08413419 | D144: 6254.300281 | E144: 8748.462466 | F144: 1.398791563 | G144: 1.398791563 | H144: 181.8429032 | I144: 130
B145: 0 | C145: 118.622595 | D145: 0 | E145: 0 | F145: 0 | I145: 0
B146: 15 | C146: 20.11008295 | D146: 404.4154363 | E146: 1010.511592 | F146: 2.498696888 | I146: 0
B147: 0 | C147: 118.622595 | D147: =IF(B147>0,C147^2,0) -> 0 | E147: =IF(B147>0,($C$7+$C$8/B147)*B147*B147*1.645*1.645,0) -> 0 | F147: 0 | H147: =IF(B147>=20,B147*G147,"") ->  | I147: 0
B148: 1055 | C148: 211.8236933 | D148: 44869.27703 | E148: 70389.76701 | F148: 1.568774263 | G148: 1.568774263 | H148: 1655.056847 | I148: 1055
B149: 15 | C149: 25.13676267 | D149: 631.8568375 | E149: 1010.511592 | F149: 1.599273019 | I149: 0
B150: 0 | C150: 118.622595 | D150: 0 | E150: 0 | F150: 0 | I150: 0
B151: 25 | C151: 30.77513201 | D151: 947.10875 | E151: 1684.030391 | F151: 1.778075 | G151: 1.778075 | H151: 44.451875 | I151: 25
B152: 15 | C152: 25.99672563 | D152: 675.8297437 | E152: 1010.511592 | F152: 1.495216216 | I152: 0
B153: 20 | C153: 32.03106896 | D153: 1025.989379 | E153: 1347.286551 | F153: 1.313158381 | G153: 1.313158381 | H153: 26.26316761 | I153: 20
B154: 35 | C154: 31.74892616 | D154: 1007.994313 | E154: 2357.424712 | F154: 2.338728188 | G154: 2.338728188 | H154: 81.85548657 | I154: 35
B155: 0 | C155: 118.622595 | D155: 0 | E155: 0 | F155: 0 | I155: 0
B156: 4 | C156: 7.957448398 | D156: 63.320985 | E156: 269.4971429 | F156: 4.256047863 | I156: 0
B157: 0 | C157: 118.622595 | D157: 0 | E157: 0 | F157: 0 | I157: 0
B158: 330 | C158: 152.4512126 | D158: 23241.37222 | E158: 22166.55803 | F158: 0.9537542716 | G158: 0.9537542716 | H158: 314.7389096 | I158: 330
B159: 35 | C159: 38.31473036 | D159: 1468.018563 | E159: 2357.424712 | F159: 1.605854839 | G159: 1.605854839 | H159: 56.20491935 | I159: 35
B160: 20 | C160: 27.55559136 | D160: 759.310615 | E160: 1347.286551 | F160: =IF(D160>0,E160/D160,0) -> 1.774354954 | G160: =IF(B160>=20,F160,"") -> 1.774354954 | H160: 35.48709907 | I160: =IF(B160>=20,B160,0) -> 20
B161: 105 | C161: 69.10958056 | D161: 4776.134125 | E161: 7067.6996 | F161: 1.479795043 | G161: 1.479795043 | H161: 155.3784795 | I161: 105
B162: 0 | C162: 118.622595 | D162: 0 | E162: 0 | F162: 0 | I162: 0
B163: 4 | C163: 17.13091974 | D163: 293.4684113 | E163: 269.4971429 | F163: 0.9183173812 | I163: 0
B164: 4 | C164: 15.374371 | D164: 236.3712837 | E164: 269.4971429 | F164: 1.140143331 | I164: 0
B165: 15 | C165: 24.45468309 | D165: 598.031525 | E165: 1010.511592 | F165: 1.689729638 | I165: 0
B166: 675 | C166: 165.5351493 | D166: 27401.88566 | E166: 45195.7488 | F166: 1.649366374 | G166: 1.649366374 | H166: 1113.322303 | I166: 675
B167: 20 | C167: 25.11252927 | D167: 630.6391262 | E167: 1347.286551 | F167: 2.136382751 | G167: 2.136382751 | H167: 42.72765501 | I167: 20
B168: 0 | C168: 118.622595 | D168: 0 | E168: 0 | F168: 0 | I168: 0
B169: 80 | C169: 72.47807276 | D169: 5253.071031 | E169: 5386.158753 | F169: 1.025335222 | G169: 1.025335222 | H169: 82.02681777 | I169: 80
B170: 0 | C170: 118.622595 | D170: 0 | E170: 0 | F170: 0 | I170: 0
B171: 0 | C171: 118.622595 | D171: 0 | E171: 0 | F171: 0 | I171: 0
B172: 0 | C172: 118.622595 | D172: 0 | E172: 0 | F172: 0 | I172: 0
B173: 0 | C173: 118.622595 | D173: 0 | E173: 0 | F173: 0 | I173: 0
B174: 0 | C174: 118.622595 | D174: 0 | E174: 0 | F174: 0 | I174: 0
B175: 0 | C175: 118.622595 | D175: 0 | E175: 0 | F175: 0 | I175: 0
B176: 0 | C176: 118.622595 | D176: 0 | E176: 0 | F176: 0 | I176: 0
B177: 910 | C177: 196.5499667 | D177: 38631.88941 | E177: 60797.46786 | F177: 1.573763768 | G177: 1.573763768 | H177: 1432.125029 | I177: 910
B178: 15 | C178: 26.19116907 | D178: 685.9773375 | E178: 1010.511592 | F178: 1.473097633 | I178: 0
B179: 0 | C179: 118.622595 | D179: 0 | E179: 0 | F179: 0 | I179: 0
B180: 0 | C180: 118.622595 | D180: 0 | E180: 0 | F180: 0 | I180: 0
B181: 10 | C181: 13.11881054 | D181: 172.10319 | E181: 673.7055141 | F181: 3.914544025 | I181: 0
B182: 1210 | C182: 311.970466 | D182: 97325.57166 | E182: 80614.6631 | F182: 0.8282988913 | G182: 0.8282988913 | H182: 1002.241658 | I182: 1210
B183: 380 | C183: 149.7876156 | D183: 22436.32978 | E183: 25513.3021 | F183: 1.137142409 | G183: 1.137142409 | H183: 432.1141155 | I183: 380
B184: 0 | C184: 118.622595 | D184: 0 | E184: 0 | F184: 0 | I184: 0
B185: 65 | C185: 44.55946413 | D185: 1985.545844 | E185: 4376.860813 | F185: 2.204361499 | G185: 2.204361499 | H185: 143.2834974 | I185: 65
B186: 35 | C186: 33.81265388 | D186: 1143.295562 | E186: 2357.424712 | F186: 2.061955621 | G186: 2.061955621 | H186: 72.16844675 | I186: 35
B187: 50 | C187: 72.89689015 | D187: 5313.956594 | E187: 3367.282799 | F187: 0.6336677276 | G187: 0.6336677276 | H187: 31.68338638 | I187: 50
B188: 0 | C188: 118.622595 | D188: 0 | E188: 0 | F188: 0 | I188: 0
B189: 15 | C189: 29.46111876 | D189: 867.9575188 | E189: 1010.511592 | F189: 1.164240842 | I189: 0
B190: 420 | C190: 147.7641337 | D190: 21834.23922 | E190: 28188.45677 | F190: 1.29102079 | G190: 1.29102079 | H190: 542.2287318 | I190: 420
B191: 25 | C191: 29.13786787 | D191: 849.0153438 | E191: 1684.030391 | F191: 1.98350996 | G191: 1.98350996 | H191: 49.587749 | I191: 25
B192: 880 | C192: 177.4390061 | D192: 31484.60088 | E192: 58809.58671 | F192: 1.867884143 | G192: 1.867884143 | H192: 1643.738045 | I192: 880
B193: 130 | C193: 91.53431 | D193: 8378.529906 | E193: 8748.462466 | F193: 1.044152442 | G193: 1.044152442 | H193: 135.7398175 | I193: 130
B194: 4 | C194: 4.161557401 | D194: 17.31856 | E194: 269.4971429 | F194: 15.561175 | I194: 0
B195: 15 | C195: 22.2075 | D195: 493.1730563 | E195: 1010.511592 | F195: 2.049 | I195: 0
B196: 70 | C196: 42.54003078 | D196: 1809.654219 | E196: 4713.324579 | F196: 2.604544299 | G196: 2.604544299 | H196: 182.3181009 | I196: 70
B197: 40 | C197: 33.56162848 | D197: 1126.382906 | E197: 2694.075194 | F197: 2.391793393 | G197: 2.391793393 | H197: 95.67173574 | I197: 40
B198: 10 | C198: 14.33605939 | D198: 205.5225988 | E198: 673.7055141 | F198: 3.27801185 | I198: 0
B199: 70 | C199: 112.0231714 | D199: 12549.19094 | E199: 4713.324579 | F199: 0.3755879245 | G199: 0.3755879245 | H199: 26.29115472 | I199: 70
B200: 0 | C200: 118.622595 | D200: 0 | E200: 0 | F200: 0 | I200: 0
B201: 0 | C201: 118.622595 | D201: 0 | E201: 0 | F201: 0 | I201: 0
B202: 0 | C202: 118.622595 | D202: 0 | E202: 0 | F202: 0 | I202: 0
B203: 65 | C203: 44.74883797 | D203: 2002.4585 | E203: 4376.860813 | F203: 2.185743581 | G203: 2.185743581 | H203: 142.0733328 | I203: 65
B204: 0 | C204: 118.622595 | D204: 0 | E204: 0 | F204: 0 | I204: 0
... 9813 more rows

Sheet 2. CompareSubgroups
B2: CTPP Margin of Error Toolkit
B4: Comparing Two Proportions Between Subgroups
B6: User Inputs
B8: Subgroup 1
C9: Proportion = | D9: 0.2
C10: MOE = | D10: 0.1
B12: Subgroup 2
C13: Proportion = | D13: 0.3
C14: MOE = | D14: 0.1
B16: Enter I for independent subgroups or D for dependent subgroups:
D17: I
B19: Outputs | I19: SE p1 | J19: SE p2 | K19: MOE (d)
C20: Difference = | D20: =D9-D13 -> -0.1 | H20: Independent | I20: =D10/1.645 -> 0.06079027356 | J20: =D14/1.645 -> 0.06079027356 | K20: =SQRT((I20^2)+(J20^2)) -> 0.08597042932
C21: MOE = | D21: =IF(D17="I",K20,IF(D17="D",O23,"Enter D or I above")) -> 0.08597042932
C22: Significant? | D22: =IF(J26>0,"Yes","No") -> Yes | I22: SE p1 | J22: SE p2 | K22: n1 | L22: n2 | M22: n | N22: Cov | O22: MOE
H23: Dependent | I23: =D10/1.645 -> 0.06079027356 | J23: =D14/1.645 -> 0.06079027356 | K23: =(D9*(1-D9))/(I23^2) -> 43.2964 | L23: =(D13*(1-D13))/(J23^2) -> 56.826525 | M23: =MIN(K23,L23) -> 43.2964 | N23: =(2*D9*D13)/M23 -> 0.002771593019 | O23: =1.645*SQRT(I23^2+J23^2+N23) -> 0.1658312395
I25: Abs diff | J25: Gtr than 0?
H26: Test | I26: =ABS(D20) -> 0.1 | J26: =I26-D21 -> 0.01402957068

Sheet 3a. Replicated Table Parameters
A1: CTPP Replicated Tables Toolkit
L2: Method 1: GVF Alpha.k | O2: Method 2: Distance Function Alpha.k | P2: Rep1
B3: X | D3: MOE.X | E3: Var.Xk | F3: Var.Pk | M3: sum(p.k^2 * (1 - p.k)^2) | N3: sum(p.k * (1 - p.k) * v.k) | P3: Randome Seeds | Q3: Gamma | R3: Dirchlet | S3: Replicated Table
A4: Total | B4: =SUM(B6:B26) -> 14300 | D4: 820 | E4: =(D4/1.645)^2 -> 248482.5528 | M4: =SUM(M6:M1005) -> 0.09851556434 | N4: =SUM(N6:N1005) -> 0.0001418845625 | P4: 0.7790279984 | Q4: =SUM(Q6:Q23) -> 691.9310112 | R4: =SUM(R6:R23) -> 1 | S4: =_xlfn.NORM.INV(P4, B4, D4/1.645) -> 14683.28874
B5: Xk | C5: Pk | D5: MOE.Xk | H5: Number of Replicated Tables
A6: Cells 1 | B6: 350 | C6: =IF(B6<>"",B6/$B$4,"") -> 0.02447552448 | D6: 126 | E6: =IF(D6<>"",(D6/1.645)^2,"") -> 5866.908103 | F6: =IF(B6<>"",C6^2*(E6/B6^2-E$4/B$4^2),"") -> 2.796251312e-05 | H6: 5 | L6: =IF(B6<>"",(B$4/24.8988-1)*C6,"") -> 14.03242682 | M6: =IF(B6<>"",C6^2*(1-C6)^2,"") -> 0.0005700859714 | N6: =IF(B6<>"",C6*(1-C6)*F6,"") -> 6.676461944e-07 | O6: =IF(B6<>"",(M$4/N$4-1)*C6,"") -> 16.96976306 | P6: 0.6097354889 | Q6: =_xlfn.GAMMA.INV(P6, O6, 1) -> 17.79820472 | R6: =Q6/Q$4 -> 0.02572251342 | S6: =R6*$S$4 -> 377.6910917
A7: 2 | B7: 2755 | C7: =IF(B7<>"",B7/$B$4,"") -> 0.1926573427 | D7: 444 | E7: =IF(D7<>"",(D7/1.645)^2,"") -> 72850.76819 | F7: =IF(B7<>"",C7^2*(E7/B7^2-E$4/B$4^2),"") -> 0.0003111539837 | L7: =IF(B7<>"",(B$4/24.8988-1)*C7,"") -> 110.4552454 | M7: =IF(B7<>"",C7^2*(1-C7)^2,"") -> 0.02419284433 | N7: =IF(B7<>"",C7*(1-C7)*F7,"") -> 4.83970434e-05 | O7: =IF(B7<>"",(M$4/N$4-1)*C7,"") -> 133.5762778 | P7: 0.3353254199 | Q7: 128.3954405 | R7: 0.1855610435 | S7: =R7*$S$4 -> 2724.646381
A8: 3 | B8: 1585 | C8: 0.1108391608 | D8: 258 | E8: 24598.44236 | F8: 0.0001053633664 | L8: =IF(B8<>"",(B$4/24.8988-1)*C8,"") -> 63.54684715 | M8: 0.009712859628 | N8: 1.038396449e-05 | O8: 76.84878413 | P8: 0.4429184198 | Q8: 75.267136 | R8: 0.1087783822 | S8: 1597.224395
A9: 4 | B9: 290 | C9: 0.02027972028 | D9: 125 | E9: 5774.152124 | F9: 2.77370993e-05 | L9: 11.62686793 | M9: 0.0003947554336 | N9: 5.5109326e-07 | O9: 14.06066082 | P9: 0.4545510411 | Q9: 13.31092462 | R9: 0.01923735807 | S9: 282.4676832
A10: 5 | B10: 160 | C10: 0.01118881119 | D10: 80 | E10: 2365.09271 | F10: 1.14136892e-05 | L10: 6.414823687 | M10: 0.000122403725 | N10: 1.262767394e-07 | O10: 7.757605969 | P10: 0.853918314 | Q10: 10.66679787 | R10: 0.01541598468 | S10: 226.3573544
A11: 6 | B11: 25 | C11: 0.001748251748 | D11: 38 | E11: 533.6240426 | F11: 2.605822214e-06 | L11: 1.002316201 | M11: 3.045706859e-06 | N11: 4.547668847e-09 | O11: 1.212125933 | P11: 0.04052108526 | Q11: 0.08018822414 | R11: 0.0001158904903 | S11: 1.701653531
A12: 7 | B12: 175 | C12: 0.01223776224 | D12: 88 | E12: 2861.762179 | F12: 1.381264966e-05 | L12: 7.016213408 | M12: 0.0001461197298 | N12: 1.66967301e-07 | O12: 8.484881528 | P12: 0.2640990019 | Q12: 6.488685682 | R12: 0.009377648315 | S12: 137.6947179
A13: 8 | B13: 705 | C13: 0.0493006993 | D13: 221 | E13: 18048.98329 | F13: 8.530995058e-05 | L13: 28.26531687 | M13: 0.002196810056 | N13: 3.998489357e-06 | O13: 34.1819513 | P13: 0.4307065606 | Q13: 32.8444812 | R13: 0.04746785541 | S13: 696.984227
A14: 9 | B14: 475 | C14: 0.03321678322 | D14: 164 | E14: 9939.302113 | F14: 4.726459838e-05 | L14: 19.04400782 | M14: 0.001031272292 | N14: 1.517828302e-06 | O14: 23.03039272 | P14: 0.8563599586 | Q14: 28.14520701 | R14: 0.04067631969 | S14: 597.2621469
A15: 10 | B15: 70 | C15: 0.004895104895 | D15: 62 | E15: 1420.533809 | F15: 6.917598205e-06 | L15: 2.806485363 | M15: 2.37280326e-05 | N15: 3.369660899e-08 | O15: 3.393952611 | P15: 0.4904715419 | Q15: 3.025815904 | R15: 0.004373002301 | S15: 64.21005545
A16: 11 | B16: 15 | C16: 0.001048951049 | D16: 21 | E16: 162.9696695 | F16: 7.956196616e-07 | L16: 0.6013897207 | M16: 1.097991196e-06 | N16: 8.336906596e-10 | O16: 0.7272755596 | P16: 0.7924214602 | Q16: 1.161503273 | R16: 0.00167864029 | S16: 24.64796008
A17: 12 | B17: 40 | C17: 0.002797202797 | D17: 44 | E17: 715.4405447 | F17: 3.489150237e-06 | L17: 1.603705922 | M17: 7.780632158e-06 | N17: 9.732560492e-09 | O17: 1.939401492 | P17: 0.4612177014 | Q17: 1.499600017 | R17: 0.002167268113 | S17: 31.82262349
A18: 13 | B18: 1115 | C18: 0.07797202797 | D18: 223 | E18: 18377.1399 | F18: 8.248059143e-05 | L18: 44.70330257 | M18: 0.005168515859 | N18: 5.929726915e-06 | O18: 54.0608166 | P18: 0.1683909893 | Q18: 46.99476214 | R18: 0.06791827709 | S18: 997.2636733
A19: 14 | B19: 4180 | C19: 0.2923076923 | D19: 453 | E19: 75834.11092 | F19: 0.0002670195149 | L19: 167.5872688 | M19: 0.04279267533 | N19: 5.523669966e-05 | O19: 202.6674559 | P19: 0.5936850905 | Q19: 205.7241921 | R19: 0.297318936 | S19: 4365.619787
A20: 15 | B20: 1730 | C20: 0.120979021 | D20: 288 | E20: 30651.60152 | F20: 0.0001321083177 | L20: 69.36028112 | M20: 0.01130885438 | N20: 1.40488077e-05 | O20: 83.87911454 | P20: 0.6148608923 | Q20: 86.24270243 | R20: 0.1246406087 | S20: 1830.134047
A21: 16 | B21: 210 | C21: 0.01468531469 | D21: 100 | E21: 3695.457359 | F21: 1.78095261e-05 | L21: 8.41945609 | M21: 0.0002093709511 | N21: 2.576977201e-07 | O21: 10.18185783 | P21: 0.8476591706 | Q21: 13.42241465 | R21: 0.01939848688 | S21: 284.8335841
A22: 17 | B22: 365 | C22: 0.02552447552 | D22: 111 | E22: 4553.173012 | F22: 2.147433574e-05 | L22: 14.63381654 | M22: 0.0006186649686 | N22: 5.341306518e-07 | O22: 17.69703862 | P22: 0.6977872849 | Q22: 19.61037335 | R22: 0.02834151531 | S22: 416.1466527
A23: 18 | B23: 55 | C23: 0.003846153846 | D23: 53 | E23: 1038.053972 | F23: 5.058331433e-06 | L23: 2.205095643 | M23: 1.46793267e-05 | N23: 1.938029351e-08 | O23: 2.666677052 | P23: 0.1893340945 | Q23: 1.252581594 | R23: 0.001810269484 | S23: 26.58070953
A24: 19 | S24: =SUM(S6:S23) -> 14683.28874
A25: 20
A26: 21
A27: 22
A28: 23
A29: 24 | E29: =IF(D29<>"",(D29/1.645)^2,"") -> 
A30: 25
A31: 26
A32: 27
A33: 28
A34: 29
A35: 30
A36: 31
A37: 32
A38: 33
A39: 34
A40: 35
A41: 36
A42: 37
A43: 38
A44: 39
A45: 40
A46: 41
A47: 42
A48: 43
A49: 44
A50: 45
A51: 46
A52: 47
A53: 48
A54: 49
A55: 50
A56: 51
A57: 52
A58: 53
A59: 54
A60: 55
A61: 56
A62: 57
A63: 58
A64: 59
A65: 60
A66: 61
A67: 62
A68: 63
A69: 64
A70: 65
A71: 66 | C71: =IF(B71<>"",B71/$B$4,"") ->  | F71: =IF(B71<>"",C71^2*(E71/B71^2-E$4/B$4^2),"") ->  | M71: =IF(B71<>"",C71^2*(1-C71)^2,"") ->  | N71: =IF(B71<>"",C71*(1-C71)*F71,"") ->  | O71: =IF(B71<>"",(M$4/N$4-1)*C71,"") -> 
A72: 67 | L72: =IF(B72<>"",(B$4/24.8988-1)*C72,"") -> 
A73: 68
A74: 69
A75: 70
A76: 71
A77: 72
A78: 73
A79: 74
A80: 75
A81: 76
A82: 77
A83: 78
A84: 79
A85: 80
A86: 81
A87: 82
A88: 83 | E88: =IF(D88<>"",(D88/1.645)^2,"") -> 
A89: 84
A90: 85
A91: 86
A92: 87
A93: 88
A94: 89
A95: 90
A96: 91
A97: 92
A98: 93
A99: 94
A100: 95
A101: 96
A102: 97
A103: 98
A104: 99
A105: 100
A106: 101
A107: 102
A108: 103
A109: 104
A110: 105
A111: 106
A112: 107
A113: 108
A114: 109
A115: 110
A116: 111
A117: 112
A118: 113
A119: 114
A120: 115
A121: 116
A122: 117
A123: 118
A124: 119
A125: 120
A126: 121
A127: 122
A128: 123
A129: 124
A130: 125
A131: 126
A132: 127
A133: 128
A134: 129
A135: 130 | C135: =IF(B135<>"",B135/$B$4,"") ->  | F135: =IF(B135<>"",C135^2*(E135/B135^2-E$4/B$4^2),"") ->  | M135: =IF(B135<>"",C135^2*(1-C135)^2,"") ->  | N135: =IF(B135<>"",C135*(1-C135)*F135,"") ->  | O135: =IF(B135<>"",(M$4/N$4-1)*C135,"") -> 
A136: 131 | L136: =IF(B136<>"",(B$4/24.8988-1)*C136,"") -> 
A137: 132
A138: 133
A139: 134
A140: 135
A141: 136
A142: 137
A143: 138
A144: 139
A145: 140
A146: 141
A147: 142
A148: 143
A149: 144
A150: 145
A151: 146
A152: 147 | E152: =IF(D152<>"",(D152/1.645)^2,"") -> 
A153: 148
A154: 149
A155: 150
A156: 151
A157: 152
A158: 153
A159: 154
A160: 155
A161: 156
A162: 157
A163: 158
A164: 159
A165: 160
A166: 161
A167: 162
A168: 163
A169: 164
A170: 165
A171: 166
A172: 167
A173: 168
A174: 169
A175: 170
A176: 171
A177: 172
A178: 173
A179: 174
A180: 175
A181: 176
A182: 177
A183: 178
A184: 179
A185: 180
A186: 181
A187: 182
A188: 183
A189: 184
A190: 185
A191: 186
A192: 187
A193: 188
A194: 189
A195: 190
A196: 191
A197: 192
A198: 193
A199: 194 | C199: =IF(B199<>"",B199/$B$4,"") ->  | F199: =IF(B199<>"",C199^2*(E199/B199^2-E$4/B$4^2),"") ->  | M199: =IF(B199<>"",C199^2*(1-C199)^2,"") ->  | N199: =IF(B199<>"",C199*(1-C199)*F199,"") ->  | O199: =IF(B199<>"",(M$4/N$4-1)*C199,"") -> 
A200: 195 | L200: =IF(B200<>"",(B$4/24.8988-1)*C200,"") -> 
... 805 more rows

Sheet 3b. Random Numbers
A1: Random Numbers to Generate Replicated Tables
A4: Total
A6: Cells 1
A7: 2
A8: 3
A9: 4
A10: 5
A11: 6
A12: 7
A13: 8
A14: 9
A15: 10
A16: 11
A17: 12
A18: 13
A19: 14
A20: 15
A21: 16
A22: 17
A23: 18
A24: 19
A25: 20
A26: 21
A27: 22
A28: 23
A29: 24
A30: 25
A31: 26
A32: 27
A33: 28
A34: 29
A35: 30
A36: 31
A37: 32
A38: 33
A39: 34
A40: 35
A41: 36
A42: 37
A43: 38
A44: 39
A45: 40
A46: 41
A47: 42
A48: 43
A49: 44
A50: 45
A51: 46
A52: 47
A53: 48
A54: 49
A55: 50
A56: 51
A57: 52
A58: 53
A59: 54
A60: 55
A61: 56
A62: 57
A63: 58
A64: 59
A65: 60
A66: 61
A67: 62
A68: 63
A69: 64
A70: 65
A71: 66
A72: 67
A73: 68
A74: 69
A75: 70
A76: 71
A77: 72
A78: 73
A79: 74
A80: 75
A81: 76
A82: 77
A83: 78
A84: 79
A85: 80
A86: 81
A87: 82
A88: 83
A89: 84
A90: 85
A91: 86
A92: 87
A93: 88
A94: 89
A95: 90
A96: 91
A97: 92
A98: 93
A99: 94
A100: 95
A101: 96
A102: 97
A103: 98
A104: 99
A105: 100
A106: 101
A107: 102
A108: 103
A109: 104
A110: 105
A111: 106
A112: 107
A113: 108
A114: 109
A115: 110
A116: 111
A117: 112
A118: 113
A119: 114
A120: 115
A121: 116
A122: 117
A123: 118
A124: 119
A125: 120
A126: 121
A127: 122
A128: 123
A129: 124
A130: 125
A131: 126
A132: 127
A133: 128
A134: 129
A135: 130
A136: 131
A137: 132
A138: 133
A139: 134
A140: 135
A141: 136
A142: 137
A143: 138
A144: 139
A145: 140
A146: 141
A147: 142
A148: 143
A149: 144
A150: 145
A151: 146
A152: 147
A153: 148
A154: 149
A155: 150
A156: 151
A157: 152
A158: 153
A159: 154
A160: 155
A161: 156
A162: 157
A163: 158
A164: 159
A165: 160
A166: 161
A167: 162
A168: 163
A169: 164
A170: 165
A171: 166
A172: 167
A173: 168
A174: 169
A175: 170
A176: 171
A177: 172
A178: 173
A179: 174
A180: 175
A181: 176
A182: 177
A183: 178
A184: 179
A185: 180
A186: 181
A187: 182
A188: 183
A189: 184
A190: 185
A191: 186
A192: 187
A193: 188
A194: 189
A195: 190
A196: 191
A197: 192
A198: 193
A199: 194
A200: 195
A201: 196
A202: 197
A203: 198
... 802 more rows

Sheet 3c. Results - GVF
A1: Replicated Tables - GVF Method
A4: Total
A6: Cells 1
A7: 2
A8: 3
A9: 4
A10: 5
A11: 6
A12: 7
A13: 8
A14: 9
A15: 10
A16: 11
A17: 12
A18: 13
A19: 14
A20: 15
A21: 16
A22: 17
A23: 18
A24: 19
A25: 20
A26: 21
A27: 22
A28: 23
A29: 24
A30: 25
A31: 26
A32: 27
A33: 28
A34: 29
A35: 30
A36: 31
A37: 32
A38: 33
A39: 34
A40: 35
A41: 36
A42: 37
A43: 38
A44: 39
A45: 40
A46: 41
A47: 42
A48: 43
A49: 44
A50: 45
A51: 46
A52: 47
A53: 48
A54: 49
A55: 50
A56: 51
A57: 52
A58: 53
A59: 54
A60: 55
A61: 56
A62: 57
A63: 58
A64: 59
A65: 60
A66: 61
A67: 62
A68: 63
A69: 64
A70: 65
A71: 66
A72: 67
A73: 68
A74: 69
A75: 70
A76: 71
A77: 72
A78: 73
A79: 74
A80: 75
A81: 76
A82: 77
A83: 78
A84: 79
A85: 80
A86: 81
A87: 82
A88: 83
A89: 84
A90: 85
A91: 86
A92: 87
A93: 88
A94: 89
A95: 90
A96: 91
A97: 92
A98: 93
A99: 94
A100: 95
A101: 96
A102: 97
A103: 98
A104: 99
A105: 100
A106: 101
A107: 102
A108: 103
A109: 104
A110: 105
A111: 106
A112: 107
A113: 108
A114: 109
A115: 110
A116: 111
A117: 112
A118: 113
A119: 114
A120: 115
A121: 116
A122: 117
A123: 118
A124: 119
A125: 120
A126: 121
A127: 122
A128: 123
A129: 124
A130: 125
A131: 126
A132: 127
A133: 128
A134: 129
A135: 130
A136: 131
A137: 132
A138: 133
A139: 134
A140: 135
A141: 136
A142: 137
A143: 138
A144: 139
A145: 140
A146: 141
A147: 142
A148: 143
A149: 144
A150: 145
A151: 146
A152: 147
A153: 148
A154: 149
A155: 150
A156: 151
A157: 152
A158: 153
A159: 154
A160: 155
A161: 156
A162: 157
A163: 158
A164: 159
A165: 160
A166: 161
A167: 162
A168: 163
A169: 164
A170: 165
A171: 166
A172: 167
A173: 168
A174: 169
A175: 170
A176: 171
A177: 172
A178: 173
A179: 174
A180: 175
A181: 176
A182: 177
A183: 178
A184: 179
A185: 180
A186: 181
A187: 182
A188: 183
A189: 184
A190: 185
A191: 186
A192: 187
A193: 188
A194: 189
A195: 190
A196: 191
A197: 192
A198: 193
A199: 194
A200: 195
A201: 196
A202: 197
A203: 198
... 802 more rows

Sheet 3d. Results - Distance Function
A1: Replicated Tables - Distance Function Method
A4: Total
A6: Cells 1
A7: 2
A8: 3
A9: 4
A10: 5
A11: 6
A12: 7
A13: 8
A14: 9
A15: 10
A16: 11
A17: 12
A18: 13
A19: 14
A20: 15
A21: 16
A22: 17
A23: 18
A24: 19
A25: 20
A26: 21
A27: 22
A28: 23
A29: 24
A30: 25
A31: 26
A32: 27
A33: 28
A34: 29
A35: 30
A36: 31
A37: 32
A38: 33
A39: 34
A40: 35
A41: 36
A42: 37
A43: 38
A44: 39
A45: 40
A46: 41
A47: 42
A48: 43
A49: 44
A50: 45
A51: 46
A52: 47
A53: 48
A54: 49
A55: 50
A56: 51
A57: 52
A58: 53
A59: 54
A60: 55
A61: 56
A62: 57
A63: 58
A64: 59
A65: 60
A66: 61
A67: 62
A68: 63
A69: 64
A70: 65
A71: 66
A72: 67
A73: 68
A74: 69
A75: 70
A76: 71
A77: 72
A78: 73
A79: 74
A80: 75
A81: 76
A82: 77
A83: 78
A84: 79
A85: 80
A86: 81
A87: 82
A88: 83
A89: 84
A90: 85
A91: 86
A92: 87
A93: 88
A94: 89
A95: 90
A96: 91
A97: 92
A98: 93
A99: 94
A100: 95
A101: 96
A102: 97
A103: 98
A104: 99
A105: 100
A106: 101
A107: 102
A108: 103
A109: 104
A110: 105
A111: 106
A112: 107
A113: 108
A114: 109
A115: 110
A116: 111
A117: 112
A118: 113
A119: 114
A120: 115
A121: 116
A122: 117
A123: 118
A124: 119
A125: 120
A126: 121
A127: 122
A128: 123
A129: 124
A130: 125
A131: 126
A132: 127
A133: 128
A134: 129
A135: 130
A136: 131
A137: 132
A138: 133
A139: 134
A140: 135
A141: 136
A142: 137
A143: 138
A144: 139
A145: 140
A146: 141
A147: 142
A148: 143
A149: 144
A150: 145
A151: 146
A152: 147
A153: 148
A154: 149
A155: 150
A156: 151
A157: 152
A158: 153
A159: 154
A160: 155
A161: 156
A162: 157
A163: 158
A164: 159
A165: 160
A166: 161
A167: 162
A168: 163
A169: 164
A170: 165
A171: 166
A172: 167
A173: 168
A174: 169
A175: 170
A176: 171
A177: 172
A178: 173
A179: 174
A180: 175
A181: 176
A182: 177
A183: 178
A184: 179
A185: 180
A186: 181
A187: 182
A188: 183
A189: 184
A190: 185
A191: 186
A192: 187
A193: 188
A194: 189
A195: 190
A196: 191
A197: 192
A198: 193
A199: 194
A200: 195
A201: 196
A202: 197
A203: 198
... 802 more rows

Sheet 3e. GVF Graphs

Sheet 3f. Distance Function Graphs

Sheet Workspace (hidden)
A1: CTPP Replicated Tables ToolKit
L2: Method 1: GVF Alpha.k | O2: Method 2: Distance Function Alpha.k | P2: Rep5
B3: Xk | C3: Pk | D3: MOE.Xk | E3: Var.Xk | F3: Var.Pk | M3: sum(p.k^2 * (1 - p.k)^2) | N3: sum(p.k * (1 - p.k) * v.k) | P3: Randome Seeds | Q3: Gamma | R3: Dirchlet | S3: Replicated Table
A4: Total | M4: 0.09851556434 | N4: 0.0001418845625 | P4: 0.01566880941 | Q4: 699.5791117 | R4: 1 | S4: 13226.89214
A6: Cells 1 | M6: 0.0005700859714 | N6: 6.676461944e-07 | O6: 16.96976306 | P6: 0.8664878607 | Q6: 21.57641625 | R6: 0.03084199613 | S6: 407.9437561
A7: 2 | M7: 0.02419284433 | N7: 4.83970434e-05 | O7: 133.5762778 | P7: 0.5400438905 | Q7: 134.4068147 | R7: 0.1921252542 | S7: 2541.220014
A8: 3 | M8: 0.009712859628 | N8: 1.038396449e-05 | O8: 76.84878413 | P8: 0.2788362503 | Q8: 71.50289545 | R8: 0.1022084483 | S8: 1351.900121
A9: 4 | M9: 0.0003947554336 | N9: 5.5109326e-07 | O9: 14.06066082 | P9: 0.4715778232 | Q9: 13.46679685 | R9: 0.01924985556 | S9: 254.6157632
A10: 5 | M10: 0.000122403725 | N10: 1.262767394e-07 | O10: 7.757605969 | P10: 0.6034971476 | Q10: 8.162418599 | R10: 0.01166761337 | S10: 154.3262636
A11: 6 | M11: 3.045706859e-06 | N11: 4.547668847e-09 | O11: 1.212125933 | P11: 0.2648070455 | Q11: 0.4415919685 | R11: 0.0006312252054 | S11: 8.349147707
A12: 7 | M12: 0.0001461197298 | N12: 1.66967301e-07 | O12: 8.484881528 | P12: 0.5471737385 | Q12: 8.495943103 | R12: 0.0121443636 | S12: 160.6321875
A13: 8 | M13: 0.002196810056 | N13: 3.998489357e-06 | O13: 34.1819513 | P13: 0.5886844993 | Q13: 35.16909716 | R13: 0.05027179424 | S13: 664.9396
A14: 9 | M14: 0.001031272292 | N14: 1.517828302e-06 | O14: 23.03039272 | P14: 0.7358196974 | Q14: 25.83194274 | R14: 0.03692497718 | S14: 488.4026904
A15: 10 | M15: 2.37280326e-05 | N15: 3.369660899e-08 | O15: 3.393952611 | P15: 0.6669116616 | Q15: 3.878319813 | R15: 0.005543790185 | S15: 73.32711481
A16: 11 | M16: 1.097991196e-06 | N16: 8.336906596e-10 | O16: 0.7272755596 | P16: 0.1936430931 | Q16: 0.09779721126 | R16: 0.0001397943558 | S16: 1.849044866
A17: 12 | M17: 7.780632158e-06 | N17: 9.732560492e-09 | O17: 1.939401492 | P17: 0.340926826 | Q17: 1.159374188 | R17: 0.00165724529 | S17: 21.9202047
A18: 13 | M18: 0.005168515859 | N18: 5.929726915e-06 | O18: 54.0608166 | P18: 0.6541415453 | Q18: 56.68547486 | R18: 0.08102796941 | S18: 1071.748211
A19: 14 | M19: 0.04279267533 | N19: 5.523669966e-05 | O19: 202.6674559 | P19: 0.6367996335 | Q19: 207.3518012 | R19: 0.2963950721 | S19: 3920.385648
A20: 15 | M20: 0.01130885438 | N20: 1.40488077e-05 | O20: 83.87911454 | P20: 0.3594186306 | Q20: 80.29951299 | R20: 0.1147826052 | S20: 1518.217138
A21: 16 | M21: 0.0002093709511 | N21: 2.576977201e-07 | O21: 10.18185783 | P21: 0.8672818542 | Q21: 13.75982672 | R21: 0.01966872151 | S21: 260.1560579
A22: 17 | M22: 0.0006186649686 | N22: 5.341306518e-07 | O22: 17.69703862 | P22: 0.254031539 | Q22: 14.75506194 | R22: 0.02109134148 | S22: 278.9728989
A23: 18 | M23: 1.46793267e-05 | N23: 1.938029351e-08 | O23: 2.666677052 | P23: 0.5502644181 | Q23: 2.538025954 | R23: 0.003627932726 | S23: 47.98627485
A24: 19 | E24: =IF(D24<>"",(D24/1.645)^2,"") -> 
A25: 20
A26: 21
A27: 22
A28: 23
A29: 24
A30: 25
A31: 26
A32: 27
A33: 28
A34: 29
A35: 30
